bitfinex-derivatives/quotes_BTCF0:USTF0_20250318
["timestamp","ask_amount","ask_price","bid_price","bid_amount"]
[1742262824682,0.17391304,83164.0,83163.0,0.4960554]
[1742262824883,0.22111304,83164.0,83163.0,0.4960554]
[1742262831991,0.22111304,83164.0,83163.0,0.3758]
[1742262833394,0.22111304,83164.0,83163.0,0.4960554]
[1742262834990,0.12701304,83164.0,83163.0,0.4960554]
[1742262835986,0.12701304,83164.0,83163.0,0.5414554]
[1742262837203,0.12601304,83164.0,83163.0,0.5414554]
[1742262837817,0.12501304,83164.0,83163.0,0.5414554]
[1742262837999,0.12601304,83164.0,83163.0,0.5414554]
[1742262839417,0.13861285,83164.0,83163.0,0.4212]
[1742262839613,0.18231285,83164.0,83163.0,0.4212]
[1742262839809,0.1202582,83161.0,83160.0,0.00018041]
[1742262840002,0.50588585,83161.0,83160.0,0.00018041]
[1742262840402,0.50964499,83161.0,83160.0,0.00018041]
[1742262840901,0.49741063,83161.0,83160.0,0.00018041]
[1742262841103,0.49941063,83161.0,83160.0,0.12044011]
[1742262842007,0.49941063,83161.0,83160.0,0.21094011]
[1742262842515,0.49939816,83161.0,83160.0,0.09068041]
[1742262842905,0.50039816,83161.0,83160.0,0.21094011]
[1742262844004,0.38013996,83161.0,83160.0,0.21094011]
[1742262844211,0.36755914,83161.0,83160.0,0.49384011]
[1742262844507,0.00675914,83161.0,83160.0,0.49384011]
[1742262845106,0.12701734,83161.0,83160.0,0.37358041]
[1742262845417,0.12701734,83161.0,83160.0,0.21184041]
[1742262846209,0.21331734,83161.0,83160.0,0.21184041]
[1742262846408,0.57411734,83161.0,83160.0,0.21184041]
[1742262847108,0.57411734,83161.0,83160.0,0.33210011]
[1742262847309,0.57411734,83161.0,83160.0,0.21184041]
[1742262847513,0.58663798,83161.0,83160.0,0.21184041]
[1742262848017,0.58663797,83161.0,83160.0,0.04508041]
[1742262848218,0.58663792,83161.0,83160.0,0.00018041]
[1742262849014,0.59864147,83161.0,83160.0,0.00018041]
[1742262849209,0.0601309,83159.0,83153.0,0.21575851]
[1742262849415,0.4810684,83154.0,83153.0,0.21575851]
[1742262849617,0.49358898,83154.0,83153.0,0.33602831]
[1742262849811,0.4810684,83154.0,83153.0,0.33602831]
[1742262850315,0.57372754,83154.0,83153.0,0.39258115]
[1742262850616,0.57572754,83154.0,83153.0,0.17682264]
[1742262850817,0.5719684,83154.0,83153.0,0.17682264]
[1742262852321,0.5709684,83154.0,83153.0,0.17682264]
[1742262852521,0.5268684,83154.0,83153.0,0.17682264]
[1742262853314,0.5268684,83154.0,83153.0,0.1646698]
[1742262854315,0.5268684,83154.0,83153.0,0.17647926]
[1742262855309,0.4840684,83154.0,83153.0,0.17647926]
[1742262856220,0.3638,83154.0,83153.0,0.17647926]
[1742262856819,0.4840684,83154.0,83153.0,0.17647926]
[1742262857417,0.4840684,83154.0,83153.0,0.0444]
[1742262858126,0.4840684,83154.0,83153.0,0.1646698]
[1742262858317,0.5277684,83154.0,83153.0,0.1646698]
[1742262858520,0.4840684,83154.0,83153.0,0.1646698]
[1742262859314,0.3638,83154.0,83153.0,0.1646698]
[1742262860026,0.4840684,83154.0,83153.0,0.1646698]
[1742262860619,0.3638,83154.0,83153.0,0.1646698]
[1742262860817,0.003,83154.0,83153.0,0.1646698]
[1742262861013,0.003,83154.0,83153.0,0.4446698]
[1742262861222,0.00281959,83154.0,83153.0,0.7046698]
[1742262863724,0.12308799,83154.0,83153.0,0.7046698]
[1742262864325,0.00281959,83154.0,83153.0,0.7046698]
[1742262864721,0.12308799,83154.0,83153.0,0.7046698]
[1742262865037,0.1654684,83154.0,83153.0,0.7066698]
[1742262865417,0.1654684,83154.0,83153.0,0.7056698]
[1742262865730,0.1202684,83154.0,83153.0,0.7046698]
[1742262866321,0.1212684,83154.0,83153.0,0.7046698]
[1742262866735,0.1202684,83154.0,83153.0,0.7046698]
[1742262866929,0.1212684,83154.0,83153.0,0.7046698]
[1742262868925,0.1212684,83154.0,83153.0,0.3044]
[1742262869133,0.2094684,83154.0,83153.0,0.1646698]
[1742262872327,0.2104684,83154.0,83153.0,0.1646698]
[1742262873137,0.2104684,83154.0,83153.0,0.0444]
[1742262873332,0.1202799,83146.0,83145.0,0.00018041]
[1742262873520,0.4810799,83146.0,83145.0,0.16546181]
[1742262873728,0.49351024,83146.0,83145.0,0.16546181]
[1742262873927,0.4810799,83146.0,83145.0,0.16546181]
[1742262874128,0.5267799,83146.0,83145.0,0.16546181]
[1742262874835,0.5726799,83146.0,83145.0,0.21016181]
[1742262878935,0.5726799,83146.0,83145.0,0.08988041]
[1742262879333,0.5726799,83146.0,83145.0,0.00018041]
[1742262879534,0.1202886,83140.0,83139.0,0.042]
[1742262879739,0.4810886,83140.0,83139.0,0.042]
[1742262880347,0.4810886,83140.0,83139.0,0.1622901]
[1742262880934,0.4810886,83140.0,83139.0,0.0873]
[1742262881242,0.4810886,83140.0,83139.0,0.2075901]
[1742262881636,0.5262886,83140.0,83139.0,0.2075901]
[1742262881836,0.5262886,83140.0,83139.0,0.2085901]
[1742262883534,0.5262886,83140.0,83139.0,0.0883]
[1742262883942,0.5262886,83140.0,83139.0,0.2085901]
[1742262884237,0.5262886,83140.0,83139.0,0.0883]
[1742262890137,0.5262886,83140.0,83139.0,0.2085901]
[1742262891243,0.5262886,83140.0,83139.0,0.0883]
[1742262891447,0.1203002,83132.0,83131.0,0.00018041]
[1742262891646,0.6022602,83132.0,83131.0,0.04408041]
[1742262892048,0.1203103,83125.0,83124.0,0.0422]
[1742262892239,0.3608,83125.0,83124.0,0.43437999]
[1742262892753,0.3568,83125.0,83124.0,0.43437999]
[1742262893456,0.3538,83125.0,83124.0,0.47677999]
[1742262894146,0.3538,83125.0,83124.0,0.48177999]
[1742262894555,0.3538,83125.0,83124.0,0.49677999]
[1742262897353,0.4741103,83125.0,83124.0,0.49677999]
[1742262897553,0.3538,83125.0,83124.0,0.49677999]
[1742262898160,0.4741103,83125.0,83124.0,0.49677999]
[1742262899159,0.3538,83125.0,83124.0,0.49677999]
[1742262899357,0.4741103,83125.0,83124.0,0.49677999]
[1742262899749,0.3538,83125.0,83124.0,0.49677999]
[1742262901058,0.0601476,83136.0,83124.0,0.49677999]
[1742262901059,0.481077,83148.0,83147.0,0.1202785]
[1742262901244,0.602237,83148.0,83147.0,0.1202785]
[1742262901752,0.48196,83148.0,83147.0,0.2064785]
[1742262901946,0.48196,83148.0,83147.0,0.21850334]
[1742262902148,0.481077,83148.0,83147.0,0.21850334]
[1742262902354,0.482077,83148.0,83147.0,0.21850334]
[1742262902553,0.482077,83148.0,83147.0,0.2064785]
[1742262902753,0.483077,83148.0,83147.0,0.0862]
[1742262903059,0.483077,83148.0,83147.0,0.2064785]
[1742262903456,0.483077,83148.0,83147.0,0.0862]
[1742262903650,0.58864901,83148.0,83147.0,0.0424]
[1742262904163,0.1202828,83144.0,83143.0,0.0452]
[1742262904356,0.49345481,83144.0,83143.0,0.0452]
[1742262905057,0.58635481,83144.0,83143.0,0.0452]
[1742262905260,0.58635481,83144.0,83143.0,0.1654843]
[1742262905461,0.58635481,83144.0,83143.0,0.2119843]
[1742262906558,0.5739828,83144.0,83143.0,0.2119843]
[1742262908265,0.58635955,83144.0,83143.0,0.2119843]
[1742262910262,0.58635955,83144.0,83143.0,0.0917]
[1742262910662,0.1202886,83140.0,83138.0,0.0117823]
[1742262910964,0.13268198,83140.0,83139.0,0.08978041]
[1742262911357,0.13268198,83140.0,83127.0,0.27591151]
[1742262911358,0.0601522,83130.0,83127.0,0.27591151]
[1742262911559,0.1649045,83129.0,83128.0,0.1657045]
[1742262911870,0.8855045,83129.0,83128.0,0.0454]
[1742262912168,0.9278045,83129.0,83128.0,0.26115851]
[1742262912562,0.9712045,83129.0,83128.0,0.30535851]
[1742262912868,0.9712045,83129.0,83128.0,0.30935851]
[1742262913267,0.98362396,83129.0,83128.0,0.30935851]
[1742262913458,0.9712045,83129.0,83128.0,0.30935851]
[1742262913972,0.98363646,83129.0,83128.0,0.30935851]
[1742262914469,0.9712045,83129.0,83128.0,0.30935851]
[1742262914669,0.98363969,83129.0,83128.0,0.30935851]
[1742262914964,0.9712045,83129.0,83128.0,0.31335851]
[1742262915575,0.98363814,83129.0,83128.0,0.0976]
[1742262915755,0.9712045,83129.0,83128.0,0.0976]
[1742262915962,0.9712045,83129.0,83128.0,0.008]
[1742262916159,0.1203132,83123.0,83122.0,0.0437]
[1742262916563,0.1203161,83121.0,83120.0,0.01247396]
[1742262916763,0.49354385,83121.0,83120.0,0.01247396]
[1742262916964,0.49354385,83121.0,83120.0,0.00018041]
[1742262918057,0.60970385,83121.0,83120.0,0.00018041]
[1742262918272,0.60968715,83121.0,83120.0,0.00018041]
[1742262918571,0.60468715,83121.0,83120.0,0.00018041]
[1742262918775,0.1203219,83117.0,83116.0,0.045]
[1742262918977,0.49353295,83117.0,83116.0,0.045]
[1742262919571,0.53913295,83117.0,83116.0,0.045]
[1742262919872,0.1203291,83112.0,83111.0,0.043]
[1742262920080,0.4811291,83112.0,83111.0,0.043]
[1742262920567,0.6022891,83112.0,83111.0,0.043]
[1742262920772,0.1203451,83101.0,83100.0,0.00896619]
[1742262920965,0.4811451,83101.0,83100.0,0.1203465]
[1742262921160,0.1203465,83100.0,83099.0,0.165948]
[1742262921363,0.1203465,83100.0,83099.0,0.0456]
[1742262921668,0.1805334,83094.0,83093.0,0.00903028]
[1742262921872,0.5413334,83094.0,83093.0,0.1203567]
[1742262922175,0.4209782,83094.0,83093.0,0.13263127]
[1742262922369,0.4209782,83094.0,83093.0,0.38263127]
[1742262922669,0.42474044,83094.0,83093.0,0.38263127]
[1742262924169,0.42474044,83094.0,83093.0,0.38363127]
[1742262929476,0.42474044,83094.0,83093.0,0.01327457]
[1742262929773,0.42474044,83094.0,83093.0,0.001]
[1742262930875,0.46994044,83094.0,83093.0,0.001]
[1742262931176,0.46994044,83094.0,83093.0,0.1213567]
[1742262931366,0.51244044,83094.0,83093.0,0.1213567]
[1742262931563,0.51244044,83094.0,83093.0,0.001]
[1742262931779,0.51244044,83094.0,83093.0,0.1213567]
[1742262932177,0.46724044,83094.0,83093.0,0.1213567]
[1742262934277,0.36456224,83094.0,83093.0,0.1213567]
[1742262934475,0.48491744,83094.0,83093.0,0.1213567]
[1742262935982,0.49577015,83094.0,83093.0,0.001]
[1742262936182,0.49577015,83094.0,83093.0,0.1213567]
[1742262936679,0.54197015,83094.0,83093.0,0.001]
[1742262937282,0.54204484,83094.0,83093.0,0.001]
[1742262937485,0.54204484,83094.0,83093.0,0.1213567]
[1742262937682,0.54204484,83094.0,83093.0,0.001]
[1742262937881,0.1203755,83080.0,83079.0,0.120376]
[1742262938075,0.49210572,83080.0,83079.0,0.420376]
[1742262938581,0.49210572,83080.0,83079.0,0.42950237]
[1742262938783,0.49210572,83080.0,83079.0,0.3]
[1742262939179,0.1193798,83077.0,83076.0,0.1668]
[1742262939385,0.13029851,83077.0,83076.0,0.3071813]
[1742262939582,0.13029851,83077.0,83076.0,0.5771813]
[1742262939887,0.13406075,83077.0,83076.0,0.5771813]
[1742262940287,0.01468095,83077.0,83076.0,0.5771813]
[1742262940587,0.13506075,83077.0,83076.0,0.6218813]
[1742262941394,0.13506075,83077.0,83076.0,0.67602641]
[1742262941584,0.13606075,83077.0,83076.0,0.67602641]
[1742262942078,0.13606075,83077.0,83076.0,0.55482641]
[1742262942281,0.49686075,83077.0,83074.0,0.00068]
[1742262942476,0.0601986,83067.0,83066.0,0.1805879]
[1742262942682,0.43191731,83067.0,83066.0,0.1805879]
[1742262942881,0.4627986,83067.0,83066.0,0.1805879]
[1742262943187,0.46656084,83067.0,83066.0,0.1805879]
[1742262943384,0.46656084,83067.0,83066.0,0.07225492]
[1742262943590,0.40636224,83067.0,83063.0,4e-05]
[1742262943778,0.1203987,83064.0,83063.0,0.02004]
[1742262944177,0.1203987,83064.0,83063.0,0.03208641]
[1742262944378,0.1203987,83064.0,83063.0,0.15248651]
[1742262944582,0.12416094,83064.0,83063.0,0.1204401]
[1742262944787,0.12416094,83064.0,83063.0,0.13247088]
[1742262944982,0.12416094,83064.0,83063.0,0.1204401]
[1742262945686,0.12516094,83064.0,83063.0,0.1204401]
[1742262946080,0.12516094,83064.0,83063.0,0.21736564]
[1742262946285,0.12416094,83064.0,83063.0,0.21736564]
[1742262947378,0.00376224,83064.0,83063.0,0.47736564]
[1742262947579,0.00376224,83064.0,83063.0,0.72736564]
[1742262947782,0.00376224,83064.0,83063.0,0.47736564]
[1742262947983,0.00376224,83066.0,83065.0,0.1203972]
[1742262948186,0.00376224,83066.0,83065.0,0.3803972]
[1742262948582,0.00376224,83066.0,83065.0,0.5115972]
[1742262949282,0.00376224,83069.0,83068.0,0.1203929]
[1742262949498,0.00376224,83069.0,83068.0,0.3803929]
[1742262950181,0.12415364,83069.0,83068.0,0.3803929]
[1742262951093,0.12515364,83069.0,83068.0,0.3803929]
[1742262951792,0.16935364,83069.0,83068.0,0.3803929]
[1742262952096,0.21345364,83069.0,83068.0,0.3803929]
[1742262952287,0.21345364,83069.0,83068.0,0.1203929]
[1742262955191,0.1203987,83065.0,83064.0,0.1203984]
[1742262955496,0.12416094,83065.0,83064.0,0.1203984]
[1742262955702,0.21526094,83065.0,83064.0,0.1203984]
[1742262956190,0.21526094,83065.0,83064.0,0.240795]
[1742262956583,0.17006094,83065.0,83064.0,0.280795]
[1742262959387,0.17006094,83065.0,83064.0,0.323895]
[1742262959790,0.21506094,83065.0,83064.0,0.323895]
[1742262961287,0.21506094,83065.0,83064.0,0.368195]
[1742262963597,0.21506094,83065.0,83064.0,0.328195]
[1742262963893,0.21506094,83065.0,83064.0,0.0874]
[1742262964289,0.26036094,83065.0,83064.0,0.0874]
[1742262964691,0.26036094,83065.0,83064.0,0.2077987]
[1742262965794,0.26036094,83065.0,83064.0,0.0874]
[1742262966296,0.26036094,83065.0,83064.0,0.2077987]
[1742262968392,0.1203987,83064.0,83063.0,4e-05]
[1742262968595,0.1203987,83064.0,83063.0,0.1204401]
[1742262968803,0.2068987,83064.0,83063.0,0.1204401]
[1742262969197,0.21066094,83064.0,83063.0,0.1204401]
[1742262969705,0.33186094,83064.0,83063.0,0.1204401]
[1742262970302,0.34442452,83064.0,83063.0,0.2078401]
[1742262971097,0.22322452,83064.0,83063.0,0.2078401]
[1742262971301,0.21066094,83064.0,83063.0,0.04414]
[1742262971601,0.2232262,83064.0,83063.0,4e-05]
[1742262972994,0.2232262,83064.0,83063.0,0.04584]
[1742262974401,0.2232262,83064.0,83063.0,0.1662401]
[1742262975404,0.21946396,83064.0,83063.0,0.04584]
[1742262975896,0.21946396,83064.0,83063.0,0.1662401]
[1742262976199,0.21946396,83064.0,83063.0,0.09154]
[1742262977391,0.94106396,83064.0,83063.0,0.09154]
[1742262978595,0.94099716,83064.0,83063.0,0.09154]
[1742262978996,0.94099716,83064.0,83063.0,0.2119401]
[1742262979293,0.94100399,83064.0,83063.0,0.2119401]
[1742262981306,0.9284987,83064.0,83063.0,0.2119401]
[1742262981807,0.8862987,83064.0,83063.0,0.2119401]
[1742262982500,0.9300987,83064.0,83063.0,0.2119401]
[1742262982806,0.3608,83076.0,83073.0,0.0601921]
[1742262983106,0.1203826,83080.0,83079.0,0.1805578]
[1742262983309,0.3608,83084.0,83083.0,0.1203711]
[1742262983501,0.3608,83084.0,83083.0,0.39249813]
[1742262983692,0.4811697,83084.0,83083.0,0.39249813]
[1742262983896,0.4811697,83084.0,83083.0,0.47859813]
[1742262985003,0.3608,83084.0,83083.0,0.47859813]
[1742262985507,0.3658,83084.0,83083.0,0.47859813]
[1742262986108,0.3708,83084.0,83083.0,0.47859813]
[1742262986506,0.4911697,83084.0,83083.0,0.47859813]
[1742262986708,0.4861697,83084.0,83083.0,0.47859813]
[1742262986901,0.4871697,83084.0,83083.0,0.47859813]
[1742262987409,0.3628,83084.0,83083.0,0.47859813]
[1742262990702,0.3579,83084.0,83083.0,0.47859813]
[1742262991303,0.3579,83084.0,83083.0,0.48859813]
[1742262992409,0.3608,83099.0,83098.0,0.1203494]
[1742262992609,0.3608,83099.0,83098.0,0.5015094]
[1742262992811,0.3608,83099.0,83098.0,0.5115094]
[1742262993507,0.481148,83099.0,83098.0,0.52056562]
[1742262994213,0.486148,83099.0,83098.0,0.52056562]
[1742262994408,0.3658,83099.0,83098.0,0.52056562]
[1742262994910,0.3698,83099.0,83098.0,0.52056562]
[1742262995309,0.490148,83099.0,83098.0,0.52056562]
[1742262996005,0.490148,83099.0,83098.0,0.12940562]
[1742262996208,0.490148,83099.0,83098.0,0.1203494]
[1742262996407,0.569148,83099.0,83098.0,0.1203494]
[1742262996912,0.1203509,83097.0,83096.0,0.3239713]
[1742262997512,0.12411306,83097.0,83096.0,0.3239713]
[1742262998310,0.12911306,83097.0,83096.0,0.3239713]
[1742262998712,0.13311306,83097.0,83096.0,0.3239713]
[1742262999920,0.13311306,83097.0,83096.0,0.33308983]
[1742263001205,0.01276216,83097.0,83096.0,0.33308983]
[1742263001405,0.01276216,83097.0,83096.0,0.56308983]
[1742263002526,0.13311306,83097.0,83096.0,0.57308983]
[1742263003218,0.01276216,83097.0,83096.0,0.57308983]
[1742263004822,0.13311306,83097.0,83096.0,0.57308983]
[1742263005412,0.21571306,83097.0,83096.0,0.57308983]
[1742263005814,0.09536216,83097.0,83096.0,0.57308983]
[1742263006026,0.01276216,83097.0,83096.0,0.57308983]
[1742263008625,0.1450647,83112.0,83106.0,0.1203378]
[1742263008820,0.00018053,83107.0,83106.0,0.5014178]
[1742263009527,0.01106249,83107.0,83106.0,0.5857178]
[1742263010128,0.3608,83116.0,83114.0,0.1203248]
[1742263010322,0.3608,83116.0,83115.0,0.2463248]
[1742263010323,0.4811234,83116.0,83115.0,0.2463248]
[1742263010515,0.3608,83116.0,83115.0,0.5163248]
[1742263011228,0.3658,83116.0,83115.0,0.5163248]
[1742263011930,0.4861234,83116.0,83115.0,0.5163248]
[1742263012116,0.4861234,83116.0,83115.0,0.4740248]
[1742263012729,0.5689234,83116.0,83115.0,0.4740248]
[1742263013222,0.4486,83116.0,83115.0,0.4740248]
[1742263013423,0.4446,83116.0,83115.0,0.4740248]
[1742263014020,0.4436,83116.0,83115.0,0.4740248]
[1742263014228,0.5659234,83116.0,83115.0,0.4740248]
[1742263015526,0.5669234,83116.0,83115.0,0.4740248]
[1742263016522,0.57294141,83116.0,83115.0,0.4740248]
[1742263017419,0.5669234,83116.0,83115.0,0.4740248]
[1742263018120,0.5669234,83116.0,83115.0,0.1632248]
[1742263018531,0.58506319,83116.0,83115.0,0.1632248]
[1742263018716,0.59108168,83116.0,83115.0,0.1632248]
[1742263019316,0.59108168,83116.0,83115.0,0.1203248]
[1742263019930,0.60387416,83116.0,83115.0,0.1203248]
[1742263020530,0.57294189,83116.0,83115.0,0.1203248]
[1742263021235,0.57294189,83116.0,83115.0,0.1600248]
[1742263021418,0.57670353,83116.0,83115.0,0.1600248]
[1742263021623,0.57670353,83116.0,83115.0,0.2024248]
[1742263022233,0.58789036,83116.0,83115.0,0.2024248]
[1742263023539,0.58786773,83116.0,83115.0,0.2024248]
[1742263024532,0.46754433,83116.0,83115.0,0.2024248]
[1742263024721,0.46754433,83116.0,83115.0,0.4524248]
[1742263024926,0.58786773,83116.0,83115.0,0.4524248]
[1742263025634,0.58184924,83116.0,83115.0,0.4524248]
[1742263026024,0.58184924,83116.0,83115.0,0.0821]
[1742263026225,0.46152584,83116.0,83110.0,0.12108]
[1742263026437,0.1203306,83111.0,83110.0,0.38104]
[1742263026633,0.1314948,83111.0,83110.0,0.38104]
[1742263026934,0.26647515,83111.0,83110.0,0.38104]
[1742263027130,0.26647515,83111.0,83110.0,0.42384]
[1742263027534,0.26045644,83111.0,83110.0,0.42384]
[1742263027828,0.21885644,83111.0,83110.0,0.544172]
[1742263028028,0.09852584,83111.0,83110.0,0.544172]
[1742263028230,0.09852584,83111.0,83110.0,0.586972]
[1742263028433,0.21885644,83111.0,83110.0,0.586972]
[1742263030224,0.21985644,83111.0,83110.0,0.586972]
[1742263030429,0.22085644,83111.0,83110.0,0.586972]
[1742263031133,0.22185644,83111.0,83110.0,0.586972]
[1742263031838,0.10152584,83111.0,83110.0,0.586972]
[1742263032036,0.10152584,83111.0,83110.0,0.465932]
[1742263032338,0.10152584,83111.0,83110.0,0.586972]
[1742263032528,0.05792584,83111.0,83110.0,0.586972]
[1742263033134,0.05773141,83111.0,83110.0,0.586972]
[1742263033441,0.05573141,83111.0,83110.0,0.586972]
[1742263033641,0.05773141,83111.0,83110.0,0.586972]
[1742263034638,0.10043141,83111.0,83110.0,0.586972]
[1742263034941,0.10039125,83111.0,83110.0,0.586972]
[1742263035338,0.05769125,83111.0,83110.0,0.586972]
[1742263035740,0.01769125,83111.0,83110.0,0.646972]
[1742263036634,0.00676164,83111.0,83110.0,0.646972]
[1742263037743,0.00476164,83111.0,83110.0,0.646972]
[1742263037935,0.00576164,83111.0,83110.0,0.646972]
[1742263038135,0.00476164,83111.0,83110.0,0.646972]
[1742263039436,0.00476164,83111.0,83110.0,0.86273051]
[1742263039635,0.00376164,83111.0,83110.0,0.86273051]
[1742263039835,0.00476164,83111.0,83110.0,0.86273051]
[1742263040548,0.00476164,83111.0,83110.0,0.89273051]
[1742263041246,0.00376164,83111.0,83110.0,0.77169051]
[1742263041544,0.00476164,83111.0,83110.0,0.77169051]
[1742263041735,0.48589224,83111.0,83110.0,0.66889051]
[1742263042244,0.56709224,83111.0,83110.0,0.66889051]
[1742263042546,0.5778642,83111.0,83110.0,0.70889051]
[1742263042951,0.5778642,83111.0,83110.0,0.493132]
[1742263043141,0.5768642,83111.0,83110.0,0.3728]
[1742263043446,0.5788642,83111.0,83110.0,0.493132]
[1742263043647,0.5798642,83111.0,83110.0,0.03]
[1742263043841,0.1203407,83104.0,83089.0,0.0601805]
[1742263044035,0.120348,83099.0,83090.0,0.06018]
[1742263044238,0.50458644,83099.0,83095.0,0.1203536]
[1742263044543,0.50462036,83099.0,83088.0,0.120363]
[1742263044745,0.1203567,83093.0,83086.0,0.53048799]
[1742263044946,0.6294307,83093.0,83088.0,0.120363]
[1742263045248,0.6294307,83093.0,83090.0,0.00018053]
[1742263045446,0.6274307,83093.0,83090.0,0.00018053]
[1742263045640,0.7087307,83093.0,83090.0,0.00018053]
[1742263045948,0.1203596,83091.0,83090.0,0.00018053]
[1742263046145,0.1475936,83091.0,83090.0,0.00018053]
[1742263046645,0.2258936,83091.0,83076.0,0.0982902]
[1742263046845,0.1203842,83074.0,83073.0,0.3016127]
[1742263047043,0.13121202,83074.0,83073.0,0.1905727]
[1742263047432,0.13497366,83074.0,83073.0,0.1905727]
[1742263047651,0.20244584,83074.0,83073.0,0.1905727]
[1742263047846,0.20244584,83074.0,83073.0,0.01]
[1742263048141,0.20244584,83074.0,83073.0,0.012]
[1742263048544,0.20244584,83074.0,83073.0,0.0548]
[1742263049646,0.21326776,83074.0,83073.0,0.0548]
[1742263050349,0.21326776,83074.0,83073.0,0.0448]
[1742263050851,0.1203987,83064.0,83063.0,4e-05]
[1742263051039,0.49202062,83064.0,83063.0,0.01004]
[1742263051238,0.49202062,83064.0,83063.0,4e-05]
[1742263051239,0.49578226,83064.0,83063.0,4e-05]
[1742263051645,0.61538226,83064.0,83063.0,4e-05]
[1742263052145,0.61538226,83064.0,83063.0,0.04094]
[1742263052455,0.61538226,83064.0,83063.0,0.1613401]
[1742263052956,0.61538226,83064.0,83063.0,0.04394]
[1742263053139,0.61538226,83064.0,83063.0,0.1643401]
[1742263053345,0.61538226,83064.0,83063.0,0.1653401]
[1742263054049,0.61534744,83064.0,83063.0,0.1653401]
[1742263055148,0.57684744,83064.0,83063.0,0.1653401]
[1742263055853,0.57686976,83064.0,83063.0,0.04494]
[1742263056748,0.57686976,83064.0,83063.0,0.1653401]
[1742263057154,0.58289194,83064.0,83063.0,0.1653401]
[1742263057345,0.58289194,83064.0,83063.0,0.1623401]
[1742263057544,0.60094816,83064.0,83063.0,0.1623401]
[1742263057746,0.56012389,83064.0,83063.0,0.1623401]
[1742263058152,0.42166896,83064.0,83063.0,0.1623401]
[1742263058352,0.53604548,83064.0,83063.0,0.1623401]
[1742263058549,0.53604548,83064.0,83063.0,0.2025401]
[1742263058953,0.49624548,83064.0,83063.0,0.2025401]
[1742263059550,0.49622218,83064.0,83063.0,0.2025401]
[1742263059945,0.49622218,83064.0,83063.0,0.5525401]
[1742263060155,0.0601918,83075.0,83074.0,0.1805727]
[1742263060460,0.1805745,83075.0,83074.0,0.1805727]
[1742263061059,0.2222745,83075.0,83074.0,0.19258543]
[1742263061464,0.2222745,83075.0,83072.0,0.0809]
[1742263061465,0.1203856,83073.0,83072.0,0.1410935]
[1742263061665,0.1203856,83073.0,83072.0,0.0809]
[1742263061854,0.1203856,83073.0,83072.0,0.2012871]
[1742263062165,0.1599856,83073.0,83072.0,0.2012871]
[1742263062858,0.1599856,83073.0,83072.0,0.0809]
[1742263063251,0.1619856,83073.0,83072.0,0.0411]
[1742263063456,0.12039,83070.0,83068.0,0.1203924]
[1742263063656,0.12039,83070.0,83069.0,0.1594914]
[1742263064061,0.12039,83070.0,83069.0,0.1997914]
[1742263065664,0.12139,83070.0,83069.0,0.1997914]
[1742263065864,0.12239,83070.0,83069.0,0.1997914]
[1742263066262,0.12139,83070.0,83069.0,0.1997914]
[1742263066463,0.12239,83070.0,83069.0,0.1997914]
[1742263069466,0.12239,83070.0,83069.0,0.0794]
[1742263069853,0.16129,83070.0,83069.0,0.0794]
[1742263070760,0.16129,83070.0,83069.0,0.1997914]
[1742263071770,0.12239,83070.0,83069.0,0.1997914]
[1742263072264,0.13325372,83070.0,83069.0,0.1997914]
[1742263072466,0.13326218,83070.0,83069.0,0.1997914]
[1742263072662,0.13702563,83070.0,83069.0,0.4497914]
[1742263074263,0.1497489,83070.0,83069.0,0.4497914]
[1742263074461,0.13702563,83070.0,83069.0,0.4497914]
[1742263074661,0.01663563,83070.0,83069.0,0.4497914]
[1742263075468,0.13702563,83070.0,83069.0,0.4497914]
[1742263079579,0.13702563,83070.0,83069.0,0.4915914]
[1742263079972,0.13702553,83070.0,83069.0,0.4915914]
[1742263080171,0.01663553,83070.0,83069.0,0.4915914]
[1742263082686,0.13702553,83070.0,83069.0,0.4915914]
[1742263082875,0.12615345,83070.0,83069.0,0.4915914]
[1742263083076,0.21529026,83070.0,83069.0,0.4915914]
[1742263084787,0.21527085,83070.0,83069.0,0.4915914]
[1742263086579,0.20445345,83070.0,83069.0,0.4915914]
[1742263086787,0.21525695,83070.0,83069.0,0.4915914]
[1742263087286,0.35697292,83070.0,83069.0,0.4915914]
[1742263089582,0.15828292,83070.0,83069.0,0.5315914]
[1742263090389,0.01656695,83070.0,83069.0,0.5415914]
[1742263091083,0.02258752,83070.0,83069.0,0.5415914]
[1742263093091,0.17714496,83073.0,83069.0,0.5415914]
[1742263093383,0.21257396,83079.0,83078.0,0.1203784]
[1742263093588,0.4013,83099.0,83081.0,0.120374]
[1742263093894,0.0369,83098.0,83097.0,0.1203509]
[1742263094777,0.0369,83098.0,83097.0,0.1582509]
[1742263094983,0.0774,83098.0,83097.0,0.17007118]
[1742263095293,0.0369,83098.0,83097.0,0.17007118]
[1742263095589,0.0419,83098.0,83097.0,0.17007118]
[1742263096181,0.0469,83098.0,83097.0,0.17007118]
[1742263098787,0.01,83098.0,83097.0,0.45007118]
[1742263098986,0.01,83098.0,83097.0,0.47007118]
[1742263100179,0.24800295,83103.0,83102.0,0.1203436]
[1742263100382,0.24800295,83103.0,83102.0,0.6213836]
[1742263100698,0.00018053,83106.0,83105.0,0.1203393]
[1742263100892,0.00018053,83106.0,83105.0,0.4403393]
[1742263101593,0.0381,83117.0,83116.0,0.1203234]
[1742263101793,0.0381,83117.0,83116.0,0.3803234]
[1742263103099,0.1694219,83117.0,83116.0,0.1213234]
[1742263103400,0.17543996,83117.0,83116.0,0.13034554]
[1742263103616,0.17543996,83117.0,83116.0,0.001]
[1742263105083,0.18653253,83117.0,83116.0,0.1213234]
[1742263105583,0.19029421,83117.0,83116.0,0.1213234]
[1742263108990,0.19025077,83117.0,83116.0,0.1213234]
[1742263110803,0.19024168,83117.0,83116.0,0.1213234]
[1742263113698,0.19024168,83117.0,83116.0,0.13347077]
[1742263114505,0.19021186,83117.0,83116.0,0.13347077]
[1742263115002,0.19021186,83117.0,83116.0,0.21347077]
[1742263116207,0.1841938,83117.0,83116.0,0.21347077]
[1742263117609,0.19021199,83117.0,83116.0,0.21347077]
[1742263118507,0.1841938,83117.0,83116.0,0.21347077]
[1742263118810,0.1841938,83117.0,83116.0,0.001]
[1742263119011,0.1841938,83117.0,83116.0,0.1213234]
[1742263119804,0.1841938,83117.0,83116.0,0.001]
[1742263120004,0.2235938,83117.0,83116.0,0.1213234]
[1742263120305,0.2236435,83117.0,83116.0,0.1213234]
[1742263120808,0.22966195,83117.0,83116.0,0.1604234]
[1742263121413,0.22966195,83117.0,83116.0,0.1985234]
[1742263122410,0.24247771,83117.0,83116.0,0.1985234]
[1742263122797,0.24247771,83117.0,83116.0,0.1213234]
[1742263123000,0.24247771,83117.0,83116.0,0.001]
[1742263123196,0.24247771,83117.0,83116.0,0.1213234]
[1742263123611,0.24247771,83117.0,83116.0,0.1604234]
[1742263123912,0.24248332,83117.0,83116.0,0.1604234]